bitfinex/quotes_BTCUSD_20240731
["timestamp","ask_amount","ask_price","bid_price","bid_amount"]
[1722395389240,0.05213222,66309.0,66308.0,0.452433]
[1722395389441,0.05213222,66309.0,66308.0,0.150811]
[1722395390341,0.09870443,66309.0,66306.0,0.150815]
[1722395390483,0.15330859,66310.0,66306.0,0.150815]
[1722395390484,0.05213222,66308.0,66307.0,0.150811]
[1722395391791,0.05213222,66308.0,66307.0,0.156811]
[1722395392017,0.05213222,66308.0,66307.0,0.006]
[1722395392176,0.05213222,66308.0,66307.0,0.156813]
[1722395392372,0.00083,66309.0,66307.0,0.156813]
[1722395392661,0.0511779,66308.0,66307.0,0.156813]
[1722395392884,0.00083,66309.0,66307.0,0.156813]
[1722395393083,0.05117789,66308.0,66307.0,0.156813]
[1722395393404,0.05117789,66308.0,66307.0,0.006]
[1722395393850,0.05117789,66308.0,66307.0,0.164813]
[1722395394575,0.05117789,66308.0,66307.0,0.46644]
[1722395394717,0.00083,66309.0,66308.0,0.150811]
[1722395394927,0.05176302,66309.0,66308.0,0.150811]
[1722395395817,0.05214045,66309.0,66308.0,0.150811]
[1722395396097,0.05214045,66309.0,66308.0,0.16479754]
[1722395397453,0.05214045,66309.0,66308.0,0.17179754]
[1722395397971,0.05214045,66309.0,66308.0,0.47341954]
[1722395398177,0.05214045,66309.0,66308.0,0.17179754]
[1722395399390,0.05197846,66309.0,66308.0,0.24799754]
[1722395399749,0.05197846,66309.0,66308.0,0.54961954]
[1722395401362,0.05197846,66309.0,66308.0,0.09718654]
[1722395401583,0.00083,66309.0,66308.0,0.09718654]
[1722395401783,0.00083,66309.0,66308.0,0.24799754]
[1722395402119,0.05200157,66309.0,66308.0,0.24799754]
[1722395403834,0.05228057,66309.0,66308.0,0.24799754]
[1722395404964,0.05225681,66309.0,66308.0,0.24799754]
[1722395406833,0.05225681,66309.0,66308.0,0.02098654]
[1722395407039,0.35566581,66309.0,66308.0,0.02098654]
[1722395407455,0.20485681,66309.0,66308.0,0.02098654]
[1722395407837,0.35566581,66309.0,66308.0,0.02098654]
[1722395408038,0.20485681,66309.0,66308.0,0.02098654]
[1722395408265,1.03620764,66309.0,66308.0,0.02098654]
[1722395408474,1.46429196,66309.0,66308.0,0.02098654]
[1722395408677,1.80868227,66309.0,66308.0,0.02098654]
[1722395409473,1.83168227,66309.0,66308.0,0.02098654]
[1722395409874,1.74498227,66309.0,66308.0,0.02098654]
[1722395410238,1.83168227,66309.0,66308.0,0.02098654]
[1722395410433,2.13330027,66309.0,66308.0,0.02098654]
[1722395411064,1.055789,66301.0,66293.0,0.000913]
[1722395411328,1.545289,66301.0,66293.0,0.000913]
[1722395411527,1.68027874,66301.0,66293.0,0.000913]
[1722395411728,1.70327874,66301.0,66293.0,0.000913]
[1722395411929,1.70327913,66301.0,66293.0,0.000913]
[1722395413769,1.70384158,66301.0,66300.0,0.003913]
[1722395414279,1.83745892,66301.0,66300.0,0.003913]
[1722395414655,1.83789648,66301.0,66300.0,0.003913]
[1722395414857,1.70427914,66301.0,66300.0,0.003913]
[1722395415665,1.70443324,66301.0,66300.0,0.003913]
[1722395416981,1.71355539,66301.0,66300.0,0.003913]
[1722395417959,1.7136673,66301.0,66300.0,0.003913]
[1722395418390,1.86436162,66301.0,66300.0,0.003913]
[1722395418793,1.5545673,66301.0,66300.0,0.003913]
[1722395418991,1.44524515,66301.0,66300.0,0.003913]
[1722395419195,1.14359115,66301.0,66300.0,0.003913]
[1722395419953,1.0582219,66301.0,66300.0,0.003913]
[1722395420158,0.3030621,66301.0,66300.0,0.003913]
[1722395420361,0.1508869,66301.0,66300.0,0.290742]
[1722395420561,0.0508869,66301.0,66300.0,0.592401]
[1722395420806,0.05112531,66301.0,66300.0,0.139913]
[1722395421040,0.1,66303.0,66301.0,0.150827]
[1722395421041,0.0511254,66302.0,66301.0,0.150827]
[1722395421328,0.05112839,66302.0,66300.0,0.136913]
[1722395421458,0.05112839,66301.0,66300.0,0.136913]
[1722395421672,0.18679878,66303.0,66300.0,0.362872]
[1722395421875,0.30383856,66309.0,66300.0,0.061213]
[1722395421876,0.1352885,66305.0,66300.0,0.061213]
[1722395422167,0.05150938,66304.0,66302.0,0.150824]
[1722395422338,0.18679788,66305.0,66303.0,0.0757]
[1722395422513,0.05150961,66304.0,66303.0,0.0757]
[1722395422737,0.05150961,66304.0,66303.0,0.0747]
[1722395422926,0.05150961,66304.0,66303.0,0.0737]
[1722395423524,0.05138792,66304.0,66303.0,0.0917]
[1722395423945,0.05138792,66304.0,66303.0,0.0837]
[1722395424186,0.05138792,66304.0,66303.0,0.0737]
[1722395424601,0.05238829,66304.0,66303.0,0.0847]
[1722395425647,0.05338829,66304.0,66303.0,0.0947]
[1722395427928,0.0531264,66304.0,66303.0,0.0947]
[1722395428222,0.2039464,66304.0,66303.0,0.0947]
[1722395429266,0.5055864,66304.0,66303.0,0.0947]
[1722395429882,0.2039464,66304.0,66303.0,0.0947]
[1722395431437,0.15282,66304.0,66303.0,0.0947]
[1722395431633,0.50508355,66304.0,66303.0,0.0947]
[1722395431839,0.50508355,66304.0,66303.0,0.021]
[1722395431840,0.97999343,66304.0,66303.0,0.021]
[1722395432482,0.91809343,66304.0,66303.0,0.021]
[1722395434801,0.91853194,66304.0,66303.0,0.021]
[1722395436004,0.82055668,66304.0,66303.0,0.021]
[1722395437543,0.51891668,66304.0,66303.0,0.0992]
[1722395437975,0.46785462,66304.0,66303.0,0.0992]
[1722395438180,0.51898401,66304.0,66303.0,0.0992]
[1722395438358,0.82062401,66304.0,66303.0,0.0992]
[1722395441365,0.82009947,66304.0,66303.0,0.0992]
[1722395441892,0.82011336,66304.0,66303.0,0.0992]
[1722395442095,1.40987363,66304.0,66303.0,0.021]
[1722395444681,1.40930441,66304.0,66303.0,0.021]
[1722395445812,0.81954414,66304.0,66303.0,0.0999]
[1722395451278,0.76949462,66304.0,66303.0,0.0999]
[1722395451478,0.81884373,66304.0,66303.0,0.0999]
[1722395451860,0.81884371,66304.0,66303.0,0.0999]
[1722395453083,0.93130052,66304.0,66303.0,0.0999]
[1722395453303,0.81884371,66304.0,66303.0,0.0999]
[1722395453509,0.81867592,66304.0,66303.0,0.0999]
[1722395453827,1.054562,66304.0,66303.0,0.0999]
[1722395454125,0.90239218,66304.0,66303.0,0.0999]
[1722395454345,1.054562,66304.0,66303.0,0.0999]
[1722395454545,0.9216874,66304.0,66303.0,0.0999]
[1722395454745,1.05522363,66304.0,66303.0,0.0999]
[1722395455779,0.51736628,66304.0,66303.0,0.0999]
[1722395456635,0.81900628,66304.0,66303.0,0.0999]
[1722395456879,0.81900628,66304.0,66303.0,0.314022]
[1722395456880,0.06490628,66304.0,66303.0,0.314022]
[1722395457091,0.06490628,66304.0,66303.0,0.615667]
[1722395457239,0.20020696,66304.0,66303.0,0.615667]
[1722395457444,0.20020696,66304.0,66303.0,0.1632]
[1722395457644,0.20020696,66304.0,66303.0,0.314022]
[1722395457855,0.06466645,66304.0,66303.0,0.615667]
[1722395458019,0.19996523,66304.0,66303.0,0.615667]
[1722395458968,0.19996523,66304.0,66303.0,1.21987]
[1722395459310,0.10642973,66304.0,66303.0,1.30657]
[1722395459525,0.00283,66304.0,66303.0,1.30657]
[1722395460244,0.00183,66304.0,66303.0,1.29557]
[1722395460449,0.00083,66304.0,66303.0,1.28557]
[1722395460687,0.00183,66304.0,66303.0,1.21087]
[1722395460882,0.00183,66304.0,66303.0,1.22187]
[1722395460883,0.0704902,66304.0,66303.0,1.22187]
[1722395461304,0.00283,66304.0,66303.0,1.22187]
[1722395461930,0.07049413,66304.0,66303.0,1.22187]
[1722395462657,0.00283,66304.0,66303.0,1.22187]
[1722395463280,0.07047381,66304.0,66303.0,1.22187]
[1722395463483,0.07047974,66304.0,66303.0,1.22187]
[1722395463893,0.00283,66304.0,66303.0,1.22187]
[1722395466589,0.00283,66304.0,66303.0,1.523515]
[1722395467460,0.00183,66304.0,66303.0,1.69414804]
[1722395467590,0.00083,66304.0,66303.0,1.69714804]
[1722395467990,0.00083,66304.0,66303.0,1.71114804]
[1722395468267,0.00083,66304.0,66303.0,1.68314804]
[1722395468505,0.00083,66304.0,66303.0,1.69714804]
[1722395468668,0.00083,66304.0,66303.0,1.68914804]
[1722395468874,0.00083,66304.0,66303.0,1.70914804]
[1722395469349,0.00083,66304.0,66303.0,1.68914804]
[1722395469747,0.00083,66304.0,66303.0,1.67514804]
[1722395470200,0.00083,66304.0,66303.0,1.68914804]
[1722395470609,0.00083,66304.0,66303.0,1.67514804]
[1722395471521,0.00083,66304.0,66303.0,1.68914804]
[1722395472086,0.00083,66304.0,66303.0,1.528515]
[1722395472238,0.00083,66304.0,66303.0,1.22687]
[1722395472415,0.00083,66304.0,66303.0,0.925225]
[1722395472622,0.00083,66304.0,66303.0,0.028913]
[1722395472852,0.00083,66304.0,66303.0,0.48138]
[1722395473055,0.01194627,66304.0,66303.0,0.48138]
[1722395473249,0.00083,66304.0,66303.0,0.028913]
[1722395473455,0.00083,66304.0,66303.0,0.179735]
[1722395473456,0.01194419,66304.0,66303.0,0.179735]
[1722395473660,0.00083,66304.0,66303.0,0.45338]
[1722395473831,0.01194935,66304.0,66303.0,0.45338]
[1722395474056,0.00083,66304.0,66303.0,0.48138]
[1722395474256,0.01194935,66304.0,66303.0,0.48138]
[1722395475136,0.01194935,66304.0,66303.0,0.028913]
[1722395475936,0.01194935,66304.0,66303.0,0.179735]
[1722395478449,0.01194935,66304.0,66303.0,0.028913]
[1722395478606,0.16276935,66304.0,66303.0,0.028913]
[1722395479185,0.23030127,66304.0,66303.0,0.028913]
[1722395479374,0.07948127,66304.0,66303.0,0.028913]
[1722395480378,0.23030127,66304.0,66303.0,0.028913]
[1722395480582,0.07944497,66304.0,66303.0,0.028913]
[1722395481538,0.23026497,66304.0,66303.0,0.028913]
[1722395482566,0.07944497,66304.0,66303.0,0.028913]
[1722395482766,0.23026497,66304.0,66303.0,0.028913]
[1722395483346,0.85605697,66304.0,66303.0,0.028913]
[1722395483546,0.81348693,66304.0,66303.0,0.028913]
[1722395483867,0.87688693,66304.0,66303.0,0.028913]
[1722395484262,0.57524693,66304.0,66303.0,0.028913]
[1722395484664,0.57524693,66304.0,66303.0,0.014913]
[1722395485166,0.57524693,66304.0,66303.0,0.026913]
[1722395485347,0.57524693,66304.0,66303.0,0.012913]
[1722395485572,0.87688693,66304.0,66303.0,0.012913]
[1722395485839,0.27360693,66304.0,66303.0,0.012913]
[1722395486103,0.57524693,66304.0,66303.0,0.012913]
[1722395486575,0.57546136,66304.0,66303.0,0.026913]
[1722395489087,0.52780935,66304.0,66303.0,0.026913]
[1722395489306,0.57531286,66304.0,66303.0,0.026913]
[1722395489528,0.87695286,66304.0,66303.0,0.026913]
[1722395489741,0.57531286,66304.0,66303.0,0.026913]
[1722395490786,0.57539912,66304.0,66303.0,0.026913]
[1722395493660,0.57523893,66304.0,66303.0,0.026913]
[1722395496884,0.57518441,66304.0,66303.0,0.026913]
[1722395498091,0.12272441,66304.0,66303.0,0.026913]
[1722395498270,0.05932441,66304.0,66303.0,0.026913]
[1722395498475,0.05932441,66304.0,66303.0,0.946125]
[1722395498476,0.12444795,66304.0,66303.0,0.946125]
[1722395498684,0.01194935,66304.0,66303.0,1.32468641]
[1722395498888,0.01194935,66304.0,66303.0,1.79896445]
[1722395499061,0.00083,66304.0,66303.0,1.79896445]
[1722395500143,0.00083,66304.0,66303.0,1.78496445]
[1722395500599,0.00083,66304.0,66303.0,1.79578724]
[1722395501221,0.00083,66304.0,66303.0,1.92568724]
[1722395501455,0.00083,66304.0,66303.0,1.90368724]
[1722395501639,0.00083,66304.0,66303.0,1.93768724]
[1722395502593,0.00083,66304.0,66303.0,1.93968724]
[1722395503247,0.00083,66304.0,66303.0,2.24133224]
[1722395503408,0.00083,66304.0,66303.0,2.36131583]
[1722395503571,0.00083,66304.0,66303.0,2.48665854]
[1722395504485,0.00083,66304.0,66303.0,2.45865854]
[1722395504654,0.00083,66304.0,66303.0,2.47265854]
[1722395504817,0.00083,66304.0,66303.0,2.48665854]
[1722395505015,0.00083,66304.0,66303.0,2.47265854]
[1722395505217,0.00083,66304.0,66303.0,2.45865854]
[1722395505408,0.00083,66304.0,66303.0,2.47265854]
[1722395506676,0.00083,66304.0,66303.0,2.48665854]
[1722395506842,0.00083,66304.0,66303.0,2.47265854]
[1722395507024,0.00083,66304.0,66303.0,2.45865854]
[1722395507408,0.00083,66308.0,66307.0,1.690948]
[1722395507609,0.00083,66308.0,66307.0,2.08208104]
[1722395507813,0.00770342,66318.0,66307.0,2.08208104]
[1722395507814,0.00770342,66318.0,66317.0,1.087533]
[1722395508022,0.00770342,66318.0,66317.0,1.89684704]
[1722395508674,0.00770342,66318.0,66317.0,2.29842804]
[1722395509186,0.00770342,66318.0,66317.0,2.32142804]
[1722395509979,0.00770342,66318.0,66317.0,2.33542804]
[1722395510409,0.00770342,66318.0,66317.0,2.32142804]
[1722395510809,0.00770342,66318.0,66317.0,2.33542804]
[1722395510982,0.00770342,66318.0,66317.0,2.34942804]
[1722395511197,0.00770342,66318.0,66317.0,2.33542804]
[1722395511610,0.00770342,66318.0,66317.0,2.34942804]
[1722395514491,0.00770342,66318.0,66317.0,2.35857786]
[1722395523185,0.00770342,66318.0,66317.0,2.35657786]
[1722395524358,0.00770342,66318.0,66317.0,2.34257786]
[1722395524556,0.00770342,66318.0,66317.0,2.32857786]
[1722395525064,0.00770342,66318.0,66317.0,2.34257786]
[1722395525714,0.00770342,66318.0,66317.0,2.35657786]
[1722395527059,0.00770342,66318.0,66317.0,2.35857786]
[1722395527595,0.00770342,66318.0,66317.0,2.4838925]
[1722395528425,0.00770342,66318.0,66317.0,2.35857786]
[1722395528632,0.00770342,66318.0,66317.0,2.48389331]
[1722395529041,0.00770342,66318.0,66317.0,2.48389357]
[1722395529239,0.00770342,66318.0,66317.0,2.35389357]
[1722395529802,0.0085,66323.0,66321.0,1.912296]
[1722395530006,0.0085,66323.0,66321.0,2.31124475]
[1722395530885,0.0085,66323.0,66321.0,2.3112386]
[1722395531021,0.0085,66323.0,66321.0,2.3252386]
[1722395531736,0.0085,66323.0,66321.0,2.19992904]
[1722395531917,0.0085,66323.0,66321.0,2.3252385]
[1722395532124,0.0085,66323.0,66321.0,2.3392385]
[1722395532662,0.0085,66323.0,66321.0,2.3112385]
[1722395532886,0.0085,66329.0,66328.0,0.180765]
[1722395533087,0.0085,66329.0,66328.0,1.09866004]
[1722395533271,0.0085,66329.0,66328.0,1.83004224]
[1722395534155,0.0085,66329.0,66328.0,1.89154224]
[1722395534329,0.0085,66329.0,66328.0,1.90554224]
[1722395535082,0.0085,66329.0,66328.0,1.90553773]
[1722395535307,0.0085,66329.0,66328.0,1.91953773]
[1722395535929,0.0085,66329.0,66328.0,1.90553773]
[1722395536126,0.0085,66329.0,66328.0,1.89153773]
[1722395536329,0.0085,66329.0,66328.0,1.84403773]
[1722395536607,0.0085,66329.0,66328.0,1.85803773]
[1722395536832,0.0085,66329.0,66328.0,1.83603773]
[1722395537819,0.0085,66329.0,66328.0,1.85603773]
[1722395537954,0.0085,66329.0,66328.0,1.83603773]
[1722395538316,0.0085,66329.0,66328.0,1.85603773]
[1722395538556,0.0085,66329.0,66328.0,1.83603773]
[1722395538776,0.0706,66329.0,66328.0,1.75742316]
[1722395538973,0.0706,66329.0,66328.0,1.76649126]
[1722395539631,0.0085,66329.0,66328.0,2.02929126]
[1722395540825,0.0085,66329.0,66328.0,2.0152891]
[1722395541019,0.0085,66329.0,66328.0,2.0012891]
[1722395541381,0.0085,66329.0,66328.0,2.0152891]
[1722395541649,0.0085,66329.0,66328.0,2.31681457]
[1722395541839,0.0085,66329.0,66328.0,2.33081456]
[1722395543216,0.0085,66329.0,66328.0,2.46061456]
[1722395544788,0.0085,66329.0,66328.0,2.46061499]
[1722395545395,0.05342759,66352.0,66343.0,1.05512]
[1722395545396,0.0626,66344.0,66343.0,1.05512]
[1722395545842,0.0626,66344.0,66343.0,1.356583]
[1722395546455,0.0626,66344.0,66343.0,1.370583]
[1722395547420,0.0626,66344.0,66343.0,1.384583]
[1722395547694,0.0626,66344.0,66343.0,1.370583]
[1722395547947,0.0626,66344.0,66343.0,1.356583]
[1722395548178,0.0626,66344.0,66343.0,1.384583]
[1722395548388,0.0626,66344.0,66343.0,1.370583]
[1722395548800,0.0626,66344.0,66343.0,1.356583]
[1722395548972,0.0626,66344.0,66343.0,1.370583]
[1722395549781,0.0626,66344.0,66343.0,1.384583]
[1722395549935,0.0085,66352.0,66343.0,1.384583]
[1722395549936,0.0663,66348.0,66347.0,1.356502]
[1722395551461,0.0663,66348.0,66347.0,1.370502]
[1722395552090,0.0663,66348.0,66347.0,1.384502]
[1722395552293,0.0663,66348.0,66347.0,1.083057]
[1722395552607,0.1429,66348.0,66347.0,1.083057]
[1722395557797,0.14373,66348.0,66347.0,1.083057]
[1722395563415,0.00083,66348.0,66347.0,1.471002]
[1722395565258,0.00083,66348.0,66347.0,1.384502]
[1722395569025,0.00083,66348.0,66347.0,1.083057]
[1722395569245,0.14483,66348.0,66347.0,1.083057]
[1722395570102,0.14483,66348.0,66347.0,0.781612]
[1722395571815,0.06473,66348.0,66347.0,1.083057]
[1722395575828,0.07441418,66348.0,66347.0,1.083057]
[1722395576438,0.00083,66348.0,66347.0,1.083057]
[1722395577038,0.01051186,66348.0,66347.0,1.083057]
[1722395577247,0.00083,66348.0,66347.0,1.083057]
[1722395577851,0.01051221,66348.0,66347.0,1.083057]
[1722395578798,0.00083,66348.0,66347.0,1.083057]
[1722395578973,0.01051221,66348.0,66347.0,1.083057]
[1722395579213,0.00083,66348.0,66347.0,1.083057]
[1722395579608,0.01051159,66348.0,66347.0,1.083057]
[1722395582217,0.01051159,66348.0,66347.0,1.069057]
[1722395582377,0.055465,66348.0,66347.0,1.069057]
[1722395582581,0.055465,66348.0,66347.0,1.083057]
[1722395583446,0.055465,66348.0,66347.0,1.069057]
[1722395583575,0.055465,66348.0,66347.0,1.083057]
[1722395584231,0.05549577,66348.0,66347.0,1.083057]
[1722395584631,0.05549672,66348.0,66347.0,1.083057]
[1722395584871,0.05549672,66348.0,66347.0,1.384502]
[1722395585074,0.05549672,66348.0,66347.0,1.162157]
[1722395585276,0.05549672,66348.0,66347.0,1.248657]
[1722395585578,0.01051159,66348.0,66347.0,1.248657]
[1722395586016,0.01051159,66348.0,66347.0,1.550102]
[1722395586245,0.01051159,66348.0,66347.0,1.248657]
[1722395586440,0.00083,66348.0,66347.0,1.248657]
[1722395586601,0.00083,66348.0,66347.0,1.550102]
[1722395586802,0.04584015,66348.0,66347.0,1.550102]
[1722395587218,0.00083,66348.0,66347.0,1.248657]
[1722395587419,0.05551756,66348.0,66347.0,1.248657]
[1722395587608,0.04584085,66348.0,66347.0,1.550102]
[1722395587807,0.05551756,66348.0,66347.0,1.248657]
[1722395587987,0.04584085,66348.0,66347.0,1.248657]
[1722395588190,0.05551756,66348.0,66347.0,1.536102]
[1722395588387,0.05551756,66348.0,66347.0,1.248657]
[1722395589409,0.01050671,66348.0,66347.0,1.248657]
[1722395589945,0.00083,66348.0,66347.0,1.169557]
[1722395590149,0.06834628,66348.0,66347.0,1.155557]
[1722395590506,0.06093,66348.0,66347.0,1.169557]
[1722395590710,0.07060833,66348.0,66347.0,1.169557]
[1722395591905,0.06093,66348.0,66347.0,1.169557]
[1722395592115,0.07060833,66348.0,66347.0,1.169557]
[1722395592573,0.01050833,66348.0,66347.0,1.169557]
[1722395594914,0.10059603,66348.0,66347.0,1.169557]
[1722395597004,0.01050833,66348.0,66347.0,1.169557]
[1722395597231,0.100642,66348.0,66347.0,1.169557]
[1722395597405,0.09096367,66348.0,66347.0,1.169557]
[1722395597624,0.10064073,66348.0,66347.0,1.169557]
[1722395600218,0.10064073,66348.0,66347.0,1.083057]
[1722395600434,0.01050706,66348.0,66347.0,1.083057]
[1722395600788,0.00083,66348.0,66347.0,1.083057]
[1722395605126,0.0909595,66348.0,66347.0,1.083057]
[1722395605387,0.00083,66348.0,66347.0,1.083057]
[1722395605624,0.09095587,66348.0,66347.0,1.159757]
[1722395606995,0.00083,66348.0,66347.0,1.159757]
[1722395607198,0.09096112,66348.0,66347.0,1.461202]
[1722395607555,0.00083,66348.0,66347.0,1.44566744]
[1722395607732,0.00083,66348.0,66347.0,1.74711244]
[1722395608296,0.00083,66348.0,66347.0,1.59383504]
[1722395608725,0.00083,66348.0,66347.0,1.62183504]
[1722395608934,0.00083,66348.0,66347.0,1.60783504]
[1722395609140,0.00083,66348.0,66347.0,1.69433504]
[1722395609348,0.00083,66348.0,66347.0,1.62183504]
[1722395609572,0.00083,66348.0,66347.0,1.70833504]
[1722395609752,0.00083,66348.0,66347.0,1.40689004]
[1722395610132,0.00083,66348.0,66347.0,1.39289004]
[1722395610133,0.06843049,66348.0,66347.0,1.39289004]
[1722395610342,0.0684297,66348.0,66347.0,1.39289004]
[1722395610753,0.0684297,66348.0,66347.0,1.37889004]
[1722395610960,0.0684297,66348.0,66347.0,1.39289004]
[1722395611521,0.0684297,66348.0,66347.0,1.37889004]
[1722395611729,0.0684297,66348.0,66347.0,1.40689004]
[1722395613693,0.0684297,66348.0,66347.0,1.70833504]
[1722395613694,0.06843026,66348.0,66347.0,1.70833504]
[1722395613820,0.06843026,66348.0,66347.0,1.40689004]
[1722395614024,0.06843028,66348.0,66347.0,1.40689004]
[1722395614416,0.00083,66348.0,66347.0,1.40689004]
[1722395614841,0.06842986,66348.0,66347.0,1.40689004]
[1722395615586,0.00083,66348.0,66347.0,1.40689004]
[1722395616979,0.00083,66348.0,66347.0,1.70833504]
[1722395616980,0.0684298,66348.0,66347.0,1.70833504]
[1722395617179,0.0684298,66348.0,66347.0,1.77473504]
[1722395617522,0.00083,66348.0,66347.0,1.77473504]
[1722395618060,0.00083,66348.0,66347.0,1.74673504]
[1722395618256,0.00083,66348.0,66347.0,1.76073504]
[1722395618575,0.00083,66348.0,66347.0,1.77473504]
[1722395621521,0.00083,66348.0,66347.0,1.40689004]
[1722395622038,0.00083,66348.0,66347.0,1.70833504]
[1722395624261,0.00083,66348.0,66347.0,1.40689004]
[1722395624421,0.00083,66348.0,66347.0,1.39289004]
[1722395624622,0.00083,66348.0,66347.0,1.40689004]
[1722395624850,0.00083,66348.0,66347.0,1.70833504]
[1722395626286,0.00083,66348.0,66347.0,1.69433504]
[1722395626652,0.00083,66348.0,66347.0,1.70833504]
[1722395632845,0.00083,66348.0,66347.0,1.40689004]
[1722395633124,0.00083,66348.0,66347.0,1.70833504]
[1722395633343,0.0459042,66348.0,66347.0,1.77143504]
[1722395633551,0.00083,66348.0,66347.0,1.77143504]
[1722395633674,0.00083,66348.0,66347.0,1.87143504]
[1722395634503,0.00083,66348.0,66347.0,2.17888004]
[1722395634711,0.00083,66348.0,66347.0,1.87743504]
[1722395635119,0.00083,66348.0,66347.0,2.18088004]
[1722395635324,0.00083,66348.0,66347.0,1.87943504]
[1722395635766,0.00083,66348.0,66347.0,2.19488004]
[1722395636329,0.00083,66348.0,66347.0,2.18088004]
[1722395636554,0.00083,66348.0,66347.0,2.19488004]
[1722395637568,0.00083,66348.0,66347.0,2.18988004]
[1722395637766,0.00083,66348.0,66347.0,2.17588004]
[1722395638133,0.00083,66348.0,66347.0,2.18988004]
[1722395638335,0.00083,66348.0,66347.0,2.17588004]
[1722395638753,0.00083,66348.0,66347.0,2.18988004]
[1722395639404,0.00083,66348.0,66347.0,2.17588004]
[1722395639635,0.00083,66348.0,66347.0,2.18988004]
[1722395640185,0.00083,66348.0,66347.0,2.17588004]
[1722395640524,0.00083,66348.0,66347.0,2.18988004]
[1722395643377,0.00083,66348.0,66347.0,2.16788004]
[1722395643581,0.00083,66348.0,66347.0,2.18988004]
[1722395646610,0.00083,66348.0,66347.0,2.31514105]
[1722395648751,0.00083,66348.0,66347.0,2.18988004]
[1722395648999,0.00083,66348.0,66347.0,2.31514105]
[1722395649769,0.00083,66348.0,66347.0,2.18988004]
[1722395649971,0.00083,66348.0,66347.0,2.31514106]
[1722395651718,0.00083,66348.0,66347.0,1.92859606]
[1722395652679,0.00083,66348.0,66347.0,2.23004106]
[1722395652892,0.00083,66348.0,66347.0,1.92859606]
[1722395653334,0.00083,66348.0,66347.0,1.92859694]
[1722395656413,0.00083,66348.0,66347.0,1.80333504]
[1722395656612,0.00083,66348.0,66347.0,1.92859716]
[1722395659149,0.00083,66348.0,66347.0,1.92859783]
[1722395659879,0.00083,66348.0,66347.0,1.92859908]
[1722395660994,0.14613,66348.0,66347.0,1.76539908]
[1722395661196,0.14613,66348.0,66347.0,1.85189908]
[1722395661633,0.14613,66348.0,66347.0,1.72663504]
[1722395662640,0.14613,66348.0,66347.0,1.69863504]
[1722395662854,0.14613,66348.0,66347.0,1.71263504]
[1722395663113,0.14613,66348.0,66347.0,1.72663504]
[1722395663756,0.14613,66348.0,66347.0,1.41519004]
[1722395663967,0.14613,66348.0,66347.0,0.776612]
[1722395663968,0.19114938,66348.0,66347.0,0.776612]
[1722395664196,0.20088551,66348.0,66347.0,0.796612]
[1722395664411,0.15586613,66348.0,66347.0,0.796612]
[1722395665246,0.20087355,66348.0,66347.0,0.796612]
[1722395666492,0.20086977,66348.0,66347.0,0.796612]
[1722395666926,0.20086975,66348.0,66347.0,0.796612]
[1722395669681,0.20086063,66348.0,66347.0,0.796612]
[1722395670252,0.15586613,66348.0,66347.0,0.796612]
[1722395673023,0.15586613,66348.0,66347.0,0.495167]
[1722395673410,0.15586613,66348.0,66347.0,0.796612]
[1722395673709,0.20085897,66348.0,66347.0,0.796612]
[1722395676003,0.20085897,66348.0,66347.0,0.495167]
[1722395676531,0.20084673,66348.0,66347.0,0.796612]
[1722395676972,0.20084674,66348.0,66347.0,0.796612]
[1722395678376,0.15586613,66348.0,66347.0,0.796612]
[1722395678742,0.20084043,66348.0,66347.0,0.796612]
[1722395679143,0.15586613,66348.0,66347.0,0.796612]
[1722395679359,0.20083853,66348.0,66347.0,0.796612]
[1722395679893,0.20083748,66348.0,66347.0,0.796612]
[1722395680095,0.15586613,66348.0,66347.0,0.796612]
[1722395680247,0.20083511,66348.0,66347.0,0.796612]
[1722395681571,0.15586613,66348.0,66347.0,0.796612]
[1722395686556,0.14613,66348.0,66347.0,0.796612]
[1722395686777,0.15583722,66348.0,66347.0,0.796612]
[1722395689142,0.07323722,66348.0,66347.0,0.796612]
[1722395689371,0.11819684,66348.0,66347.0,0.796612]
[1722395689731,0.11819838,66348.0,66347.0,0.796612]
[1722395690935,0.19579838,66348.0,66347.0,0.495167]
[1722395691569,0.19563838,66348.0,66347.0,0.495167]
[1722395691833,0.19563838,66348.0,66347.0,0.481167]
[1722395692263,0.19563838,66348.0,66347.0,0.49608]
[1722395692670,0.28620514,66348.0,66347.0,0.46808]
[1722395692879,0.28620514,66348.0,66347.0,0.48208]
[1722395693129,0.28635375,66348.0,66347.0,0.48208]
[1722395693341,0.28635375,66348.0,66347.0,0.49608]
[1722395693545,0.28635375,66348.0,66347.0,0.48208]
[1722395693751,0.28635375,66348.0,66347.0,0.49608]
[1722395693956,0.28635375,66348.0,66347.0,0.194635]
[1722395694158,0.28635375,66348.0,66347.0,0.49608]
[1722395694374,0.19642106,66348.0,66347.0,0.49608]
[1722395696386,0.30884543,66348.0,66347.0,0.49608]
[1722395696588,0.28635837,66348.0,66347.0,0.797525]
[1722395696791,0.28571087,66348.0,66347.0,0.797525]
[1722395697087,0.20811087,66348.0,66347.0,0.797525]
[1722395698666,0.11803144,66348.0,66347.0,0.797525]
[1722395698838,0.23046653,66348.0,66347.0,0.797525]
[1722395699247,0.11803144,66348.0,66347.0,0.797525]
[1722395699715,0.11808194,66348.0,66347.0,0.797525]
[1722395701069,0.23052017,66348.0,66347.0,0.797525]
[1722395701278,0.11808194,66348.0,66347.0,0.797525]
[1722395701869,0.11859245,66348.0,66347.0,0.797525]
[1722395703456,0.11859245,66348.0,66347.0,0.49608]
[1722395704194,0.11859245,66348.0,66347.0,0.048913]
[1722395704195,0.20179245,66348.0,66347.0,0.048913]
[1722395704346,0.20179245,66348.0,66347.0,0.04907298]
[1722395704547,0.20179245,66348.0,66347.0,0.19979498]
[1722395704714,0.20179245,66348.0,66347.0,0.199635]
[1722395705117,0.20173765,66348.0,66347.0,0.199635]
[1722395705317,0.20173765,66348.0,66347.0,0.50108]
[1722395706148,0.20173765,66348.0,66347.0,0.199635]
[1722395706787,0.20173765,66348.0,66347.0,0.50108]
[1722395707619,0.20173765,66348.0,66347.0,0.199635]
[1722395708027,0.20173765,66348.0,66347.0,0.048913]
[1722395708184,0.20173765,66348.0,66347.0,0.199635]
[1722395708398,0.32775268,66348.0,66347.0,0.199635]
[1722395708601,0.25426382,66348.0,66347.0,0.199635]